fUST/lending_fUST_20241123
["ID","MTS","AMOUNT","RATE_DAILY","PERIOD"]
[343108749,1732363803740,-500.0,0.0002,2]
[343108750,1732363803771,-500.0,0.0002,2]
[343108751,1732363803801,-452.12377771,0.0002,2]
[343108752,1732363803831,-500.0,0.0002,2]
[343108753,1732363803861,-816.47,0.0002,2]
[343108754,1732363803893,-500.0,0.0002,2]
[343108755,1732363803925,-500.0,0.0002,2]
[343108756,1732363803956,-500.0,0.0002,2]
[343108757,1732363803987,-500.0,0.0002,2]
[343108758,1732363804021,-500.0,0.0002,2]
[343108759,1732363804051,-196.69608871,0.0002,2]
[343108760,1732363804083,-163.57321429,0.0002,2]
[343108761,1732363804114,-500.0,0.0002,2]
[343108762,1732363804145,-167.27168764,0.0002,2]
[343108763,1732363804177,-500.0,0.0002,2]
[343108764,1732363804208,-500.0,0.0002,2]
[343108765,1732363804240,-500.0,0.0002,2]
[343108766,1732363804272,-500.0,0.0002,2]
[343108767,1732363804305,-500.0,0.0002,2]
[343108768,1732363804341,-521.50045765,0.0002,2]
[343108769,1732363804374,-631.37459045,0.0002,2]
[343108770,1732363804407,-543.81,0.0002,2]
[343108771,1732363804440,-500.0,0.0002,2]
[343108772,1732363804473,-269.34506431,0.0002,2]
[343108773,1732363804506,-500.0,0.0002,2]
[343108774,1732363804543,-500.0,0.0002,2]
[343108776,1732363804582,-634.99353044,0.0002,2]
[343108777,1732363804632,-500.0,0.0002,2]
[343108778,1732363804669,-500.0,0.0002,2]
[343108779,1732363804721,-500.0,0.0002,2]
[343108780,1732363804766,-500.0,0.0002,2]
[343108781,1732363804821,-180.05603968,0.0002,2]
[343108782,1732363804853,-602.65906831,0.0002,2]
[343108783,1732363804920,-500.0,0.0002,2]
[343108784,1732363804961,-500.0,0.0002,2]
[343108785,1732363805008,-500.0,0.0002,2]
[343108786,1732363805057,-2279.09,0.0002,2]
[343108787,1732363805093,-818.1,0.0002,2]
[343108788,1732363805128,-500.0,0.0002,2]
[343108789,1732363805160,-500.0,0.0002,2]
[343108790,1732363805192,-500.0,0.0002,2]
[343108791,1732363805226,-1477.59,0.0002,2]
[343108792,1732363805258,-171.84121956,0.0002,2]
[343108793,1732363805294,-500.0,0.0002,2]
[343108794,1732363805326,-500.0,0.0002,2]
[343108795,1732363805360,-500.0,0.0002,2]
[343108796,1732363805392,-500.0,0.0002,2]
[343108797,1732363805422,-3389.13,0.0002,2]
[343108798,1732363805451,-500.0,0.0002,2]
[343108799,1732363805480,-516.94250602,0.0002,2]
[343108800,1732363805511,-500.0,0.0002,2]
[343108801,1732363805546,-2266.58,0.0002,2]
[343108802,1732363805585,-500.0,0.0002,2]
[343108803,1732363805616,-500.0,0.0002,2]
[343108804,1732363805646,-500.0,0.0002,2]
[343108805,1732363805675,-500.0,0.0002,2]
[343108806,1732363805708,-500.0,0.0002,2]
[343108807,1732363805739,-500.0,0.0002,2]
[343108808,1732363805768,-500.0,0.0002,2]
[343108809,1732363805801,-500.0,0.0002,2]
[343108810,1732363805978,-500.0,0.0002,2]
[343108811,1732363806012,-500.0,0.0002,2]
[343108812,1732363806047,-1440.12,0.0002,2]
[343108813,1732363806080,-523.04526124,0.0002,2]
[343108814,1732363806111,-500.0,0.0002,2]
[343108815,1732363806149,-1494.84,0.0002,2]
[343108816,1732363806179,-500.0,0.0002,2]
[343108817,1732363806208,-500.0,0.0002,2]
[343108818,1732363806237,-500.0,0.0002,2]
[343108819,1732363806266,-545.68,0.0002,2]
[343108820,1732363806296,-541.1344211,0.0002,2]
[343108821,1732363806327,-500.0,0.0002,2]
[343108822,1732363806366,-500.0,0.0002,2]
[343108823,1732363806399,-500.0,0.0002,2]
[343108824,1732363806429,-500.0,0.0002,2]
[343108825,1732363806458,-500.0,0.0002,2]
[343108826,1732363806488,-500.0,0.0002,2]
[343108827,1732363806518,-500.0,0.0002,2]
[343108828,1732363806550,-500.0,0.0002,2]
[343108829,1732363806579,-398.04393656,0.0002,2]
[343108830,1732363806608,-660.32,0.0002,2]
[343108831,1732363806637,-500.0,0.0002,2]
[343108832,1732363806668,-490.43188621,0.0002,2]
[343108833,1732363806698,-511.41229252,0.0002,2]
[343108834,1732363806729,-573.87,0.0002,2]
[343108835,1732363806760,-500.0,0.0002,2]
[343108836,1732363806793,-500.0,0.0002,2]
[343108837,1732363806823,-500.0,0.0002,2]
[343108838,1732363806853,-501.83272302,0.0002,2]
[343108839,1732363806882,-500.0,0.0002,2]
[343108840,1732363806911,-500.0,0.0002,2]
[343108841,1732363806942,-500.0,0.0002,2]
[343108842,1732363806975,-218.3303159,0.0002,2]
[343108843,1732363807010,-2025.79,0.0002,2]
[343108844,1732363807039,-500.0,0.0002,2]
[343108845,1732363807069,-526.89,0.0002,2]
[343108846,1732363807100,-500.0,0.0002,2]
[343108847,1732363807132,-500.0,0.0002,2]
[343108848,1732363807161,-500.0,0.0002,2]
[343108849,1732363807194,-500.0,0.0002,2]
[343108850,1732363807224,-402.25804288,0.0002,2]
[343108851,1732363807255,-500.0,0.0002,2]
[343108852,1732363807289,-341.02830046,0.0002,2]
[343108853,1732363807318,-500.0,0.0002,2]
[343108854,1732363807348,-500.0,0.0002,2]
[343108855,1732363807381,-648.17,0.0002,2]
[343108856,1732363807413,-500.0,0.0002,2]
[343108857,1732363807444,-500.0,0.0002,2]
[343108858,1732363807477,-500.0,0.0002,2]
[343108859,1732363807510,-2792.79,0.0002,2]
[343108860,1732363807544,-518.37069563,0.0002,2]
[343108861,1732363807575,-500.0,0.0002,2]
[343108862,1732363807604,-1186.81,0.0002,2]
[343108863,1732363807632,-500.0,0.0002,2]
[343108864,1732363807661,-665.0,0.0002,2]
[343108865,1732363807689,-425.66286185,0.0002,2]
[343108866,1732363807718,-500.0,0.0002,2]
[343108867,1732363807748,-500.0,0.0002,2]
[343108868,1732363807778,-500.0,0.0002,2]
[343108869,1732363807808,-549.80154939,0.0002,2]
[343108870,1732363807839,-925.73,0.0002,2]
[343108871,1732363807868,-500.0,0.0002,2]
[343108872,1732363807898,-500.0,0.0002,2]
[343108873,1732363807929,-500.0,0.0002,2]
[343108874,1732363807959,-1500.44,0.0002,2]
[343108875,1732363807989,-500.0,0.0002,2]
[343108876,1732363808021,-500.0,0.0002,2]
[343108877,1732363808056,-647.01601681,0.0002,2]
[343108878,1732363808088,-500.0,0.0002,2]
[343108879,1732363808120,-500.0,0.0002,2]
[343108880,1732363808151,-1213.35,0.0002,2]
[343108881,1732363808184,-751.64,0.0002,2]
[343108882,1732363808215,-513.54913586,0.0002,2]
[343108883,1732363808246,-1969.72,0.0002,2]
[343108884,1732363808278,-500.0,0.0002,2]
[343108885,1732363808311,-664.91,0.0002,2]
[343108886,1732363808344,-537.30895969,0.0002,2]
[343108887,1732363808374,-339.63985543,0.0002,2]
[343108888,1732363808404,-500.0,0.0002,2]
[343108889,1732363808433,-500.0,0.0002,2]
[343108890,1732363808463,-500.0,0.0002,2]
[343108891,1732363808495,-578.83111077,0.0002,2]
[343108892,1732363808528,-500.0,0.0002,2]
[343108893,1732363808557,-500.0,0.0002,2]
[343108894,1732363808587,-500.0,0.0002,2]
[343108895,1732363808617,-500.0,0.0002,2]
[343108896,1732363808649,-500.0,0.0002,2]
[343108897,1732363808679,-637.25712173,0.0002,2]
[343108898,1732363808749,-500.0,0.0002,2]
[343108899,1732363808783,-523.56971997,0.0002,2]
[343108900,1732363808823,-464.83775345,0.0002,2]
[343108901,1732363808865,-161.6726239,0.0002,2]
[343108902,1732363808899,-500.0,0.0002,2]
[343108903,1732363808935,-500.0,0.0002,2]
[343108904,1732363808968,-500.0,0.0002,2]
[343108905,1732363809003,-500.0,0.0002,2]
[343108906,1732363809035,-196.45189082,0.0002,2]
[343108907,1732363809067,-2048.21,0.0002,2]
[343108908,1732363809106,-788.01,0.0002,2]
[343108909,1732363809147,-264.33007426,0.0002,2]
[343108910,1732363809186,-1124.43,0.0002,2]
[343108911,1732363809232,-500.0,0.0002,2]
[343108912,1732363809279,-500.0,0.0002,2]
[343108913,1732363809323,-306.58,0.0002,2]
[343108914,1732363809372,-500.0,0.0002,2]
[343108915,1732363809402,-500.0,0.0002,2]
[343108916,1732363809434,-1339.0,0.0002,2]
[343108917,1732363809464,-500.0,0.0002,2]
[343108918,1732363809495,-500.0,0.0002,2]
[343108919,1732363809544,-500.0,0.0002,2]
[343108920,1732363809575,-3677.49,0.0002,2]
[343108921,1732363809604,-500.0,0.0002,2]
[343108922,1732363809650,-500.0,0.0002,2]
[343108923,1732363809684,-500.0,0.0002,2]
[343108924,1732363809716,-500.0,0.0002,2]
[343108925,1732363809747,-500.0,0.0002,2]
[343108926,1732363809783,-953.29,0.0002,2]
[343108927,1732363809813,-500.0,0.0002,2]
[343108928,1732363809842,-2221.36,0.0002,2]
[343108929,1732363809871,-500.0,0.0002,2]
[343108930,1732363809899,-500.0,0.0002,2]
[343108931,1732363809928,-2948.33,0.0002,2]
[343108932,1732363809958,-1061.6,0.0002,2]
[343108933,1732363809988,-500.0,0.0002,2]
[343108934,1732363810021,-500.0,0.0002,2]
[343108935,1732363810056,-500.0,0.0002,2]
[343108936,1732363810087,-587.96,0.0002,2]
[343108937,1732363810116,-500.0,0.0002,2]
[343108938,1732363810147,-500.0,0.0002,2]
[343108939,1732363810178,-500.0,0.0002,2]
[343108940,1732363810207,-619.79929398,0.0002,2]
[343108941,1732363810238,-500.0,0.0002,2]
[343108942,1732363810267,-500.0,0.0002,2]
[343108943,1732363810300,-500.0,0.0002,2]
[343108944,1732363810330,-500.0,0.0002,2]
[343108945,1732363810361,-588.58,0.0002,2]
[343108946,1732363810391,-540.85497134,0.0002,2]
[343108947,1732363810422,-500.0,0.0002,2]
[343108948,1732363810451,-500.0,0.0002,2]
[343108949,1732363810481,-500.0,0.0002,2]
[343108950,1732363810512,-500.0,0.0002,2]
[343108951,1732363810543,-500.0,0.0002,2]
[343108952,1732363810573,-500.0,0.0002,2]
[343108953,1732363810603,-749.93,0.0002,2]
[343108954,1732363810634,-500.0,0.0002,2]
[343108955,1732363810663,-500.0,0.0002,2]
[343108956,1732363810692,-500.0,0.0002,2]
[343108957,1732363810722,-500.0,0.0002,2]
[343108958,1732363810750,-500.0,0.0002,2]
[343108959,1732363810783,-2567.47,0.0002,2]
[343108960,1732363810812,-500.0,0.0002,2]
[343108961,1732363810846,-500.0,0.0002,2]
[343108962,1732363810879,-500.0,0.0002,2]
[343108963,1732363810909,-500.0,0.0002,2]
[343108964,1732363810938,-500.0,0.0002,2]
[343108965,1732363810972,-500.0,0.0002,2]
[343108966,1732363811014,-500.0,0.0002,2]
[343108967,1732363811049,-790.77,0.0002,2]
[343108968,1732363811082,-1469.49,0.0002,2]
[343108969,1732363811113,-742.26,0.0002,2]
[343108970,1732363811142,-916.83,0.0002,2]
[343108971,1732363811173,-1008.43,0.0002,2]
[343108972,1732363811204,-559.70132693,0.0002,2]
[343108973,1732363811233,-500.0,0.0002,2]
[343108974,1732363811263,-1754.95,0.0002,2]
[343108975,1732363811295,-500.0,0.0002,2]
[343108976,1732363811331,-500.0,0.0002,2]
[343108977,1732363811362,-1328.13,0.0002,2]
[343108978,1732363811393,-500.0,0.0002,2]
[343108979,1732363811423,-500.0,0.0002,2]
[343108980,1732363811452,-500.0,0.0002,2]
[343108981,1732363811491,-355.37124002,0.0002,2]
[343108982,1732363811534,-500.0,0.0002,2]
[343108983,1732363811565,-500.0,0.0002,2]
[343108984,1732363811596,-500.0,0.0002,2]
[343108985,1732363811627,-2115.15,0.0002,2]
[343108986,1732363811658,-500.0,0.0002,2]
[343108987,1732363811690,-1264.18,0.0002,2]
[343108988,1732363811722,-318.63735562,0.0002,2]
[343108989,1732363811752,-1063.75,0.0002,2]
[343108990,1732363811784,-500.0,0.0002,2]
[343108991,1732363811818,-3000.43,0.0002,2]
[343108992,1732363811849,-970.07,0.0002,2]
[343108993,1732363811879,-500.0,0.0002,2]
[343108994,1732363811918,-500.0,0.0002,2]
[343108995,1732363811949,-500.0,0.0002,2]
[343108996,1732363811979,-500.0,0.0002,2]
[343108997,1732363812017,-1860.18,0.0002,2]
[343108998,1732363812051,-1112.89,0.0002,2]
[343108999,1732363812089,-500.0,0.0002,2]
[343109000,1732363812123,-500.0,0.0002,2]
[343109001,1732363812154,-500.0,0.0002,2]
[343109002,1732363812189,-1936.77,0.0002,2]
[343109003,1732363812221,-500.0,0.0002,2]
[343109004,1732363812253,-500.0,0.0002,2]
[343109005,1732363812294,-610.26266342,0.0002,2]
[343109006,1732363812331,-702.49,0.0002,2]
[343109007,1732363812363,-500.0,0.0002,2]
[343109008,1732363812395,-500.0,0.0002,2]
[343109009,1732363812427,-912.88,0.0002,2]
[343109010,1732363812457,-500.0,0.0002,2]
[343109011,1732363812487,-500.0,0.0002,2]
[343109012,1732363812516,-1037.38,0.0002,2]
[343109013,1732363812550,-1495.76,0.0002,2]
[343109014,1732363812587,-500.0,0.0002,2]
[343109015,1732363812617,-2803.62,0.0002,2]
[343109016,1732363812647,-500.0,0.0002,2]
[343109017,1732363812841,-1765.88,0.0002,2]
[343109018,1732363812875,-2345.51,0.0002,2]
[343109019,1732363812904,-1337.23,0.0002,2]
[343109020,1732363812935,-500.0,0.0002,2]
[343109021,1732363812963,-500.0,0.0002,2]
[343109022,1732363812992,-500.0,0.0002,2]
[343109023,1732363813021,-3077.62,0.0002,2]
[343109024,1732363813062,-1166.03,0.0002,2]
[343109025,1732363813124,-500.0,0.0002,2]
[343109027,1732363813193,-500.0,0.0002,2]
[343109028,1732363813252,-500.0,0.0002,2]
[343109029,1732363813296,-974.99,0.0002,2]
[343109030,1732363813340,-861.9,0.0002,2]
[343109031,1732363813372,-1189.97,0.0002,2]
[343109032,1732363813420,-577.2,0.0002,2]
[343109033,1732363813458,-1458.21,0.0002,2]
[343109034,1732363813493,-500.0,0.0002,2]
[343109035,1732363813522,-500.0,0.0002,2]
[343109036,1732363813558,-1532.1,0.0002,2]
[343109037,1732363813590,-500.0,0.0002,2]
[343109038,1732363813619,-1013.64,0.0002,2]
[343109039,1732363813648,-1862.24,0.0002,2]
[343109040,1732363813678,-617.32041013,0.0002,2]
[343109041,1732363813707,-500.0,0.0002,2]
[343109042,1732363813736,-9026.67,0.0002,2]
[343109043,1732363813767,-518.23194668,0.0002,2]
[343109044,1732363813801,-2662.96,0.0002,2]
[343109045,1732363813831,-500.0,0.0002,2]
[343109046,1732363813863,-500.0,0.0002,2]
[343109047,1732363813892,-1913.0,0.0002,2]
[343109048,1732363813921,-500.0,0.0002,2]
[343109049,1732363813950,-1506.09,0.0002,2]
[343109050,1732363813979,-500.0,0.0002,2]
[343109051,1732363814011,-500.0,0.0002,2]
[343109052,1732363814044,-1121.28,0.0002,2]
[343109053,1732363814074,-623.68,0.0002,2]
[343109054,1732363814107,-500.0,0.0002,2]
[343109055,1732363814139,-1909.7,0.0002,2]
[343109056,1732363814169,-656.98,0.0002,2]
[343109057,1732363814198,-500.0,0.0002,2]
[343109058,1732363814227,-500.0,0.0002,2]
[343109059,1732363814260,-500.0,0.0002,2]
[343109060,1732363814291,-500.0,0.0002,2]
[343109061,1732363814322,-500.0,0.0002,2]
[343109062,1732363814351,-1555.38,0.0002,2]
[343109063,1732363814381,-565.37,0.0002,2]
[343109064,1732363814409,-603.55,0.0002,2]
[343109065,1732363814439,-509.24627228,0.0002,2]
[343109066,1732363814470,-798.23,0.0002,2]
[343109067,1732363814500,-500.0,0.0002,2]
[343109068,1732363814530,-500.0,0.0002,2]
[343109069,1732363814560,-507.54144555,0.0002,2]
[343109070,1732363814591,-500.0,0.0002,2]
[343109071,1732363814621,-500.0,0.0002,2]
[343109072,1732363814649,-839.02,0.0002,2]
[343109073,1732363814678,-528.51,0.0002,2]
[343109074,1732363814709,-500.0,0.0002,2]
[343109075,1732363814738,-500.0,0.0002,2]
[343109076,1732363814768,-500.0,0.0002,2]
[343109077,1732363814798,-500.0,0.0002,2]
[343109078,1732363814828,-500.0,0.0002,2]
[343109079,1732363814858,-500.0,0.0002,2]
[343109080,1732363814887,-1075.91,0.0002,2]
[343109081,1732363814915,-434.80306127,0.0002,2]
[343109082,1732363814945,-542.9320143,0.0002,2]
[343109083,1732363814974,-500.0,0.0002,2]
[343109084,1732363815004,-535.9,0.0002,2]
[343109085,1732363815043,-500.0,0.0002,2]
[343109086,1732363815075,-817.22,0.0002,2]
[343109087,1732363815108,-1151.72,0.0002,2]
[343109088,1732363815143,-500.0,0.0002,2]
[343109089,1732363815176,-978.05,0.0002,2]
[343109090,1732363815208,-500.0,0.0002,2]
[343109091,1732363815242,-500.0,0.0002,2]
[343109092,1732363815273,-6942.67,0.0002,2]
[343109093,1732363815306,-500.0,0.0002,2]
[343109094,1732363815338,-953.96,0.0002,2]
[343109095,1732363815371,-500.0,0.0002,2]
[343109096,1732363815402,-500.0,0.0002,2]
[343109097,1732363815436,-500.0,0.0002,2]
[343109098,1732363815468,-500.0,0.0002,2]
[343109099,1732363815499,-500.0,0.0002,2]
[343109100,1732363815539,-52463.48,0.0002,2]
[343109101,1732363815570,-500.0,0.0002,2]
[343109102,1732363815598,-500.0,0.0002,2]
[343109103,1732363815628,-500.0,0.0002,2]
[343109104,1732363815657,-500.0,0.0002,2]
[343109105,1732363815686,-500.0,0.0002,2]
[343109106,1732363815717,-772.5,0.0002,2]
[343109107,1732363815746,-500.0,0.0002,2]
[343109108,1732363815776,-512.55003951,0.0002,2]
[343109109,1732363815812,-500.0,0.0002,2]
[343109110,1732363815842,-1910.73,0.0002,2]
[343109111,1732363815871,-500.0,0.0002,2]
[343109112,1732363815901,-1061.88,0.0002,2]
[343109113,1732363815930,-500.0,0.0002,2]
[343109114,1732363815960,-4477.26,0.0002,2]
[343109115,1732363815991,-909.52,0.0002,2]
[343109116,1732363816023,-1682.46,0.0002,2]
[343109117,1732363816058,-820.13,0.0002,2]
[343109118,1732363816088,-1013.63,0.0002,2]
[343109119,1732363816120,-500.0,0.0002,2]
[343109120,1732363816158,-500.0,0.0002,2]
[343109121,1732363816190,-2690.84,0.0002,2]
[343109122,1732363816221,-500.0,0.0002,2]
[343109123,1732363816255,-2805.8,0.0002,2]
[343109124,1732363816288,-500.0,0.0002,2]
[343109125,1732363816320,-693.81,0.0002,2]
[343109126,1732363816351,-500.0,0.0002,2]
[343109127,1732363816383,-1206.73,0.0002,2]
[343109128,1732363816415,-500.0,0.0002,2]
[343109129,1732363816449,-718.66,0.0002,2]
[343109130,1732363816479,-500.0,0.0002,2]
[343109131,1732363816508,-6072.35,0.0002,2]
[343109132,1732363816539,-3779.33,0.0002,2]
[343109133,1732363816717,-500.0,0.0002,2]
[343109134,1732363816748,-500.0,0.0002,2]
[343109135,1732363816778,-500.0,0.0002,2]
[343109136,1732363816809,-500.0,0.0002,2]
[343109137,1732363816840,-500.0,0.0002,2]
[343109138,1732363816870,-500.0,0.0002,2]
[343109139,1732363816899,-500.0,0.0002,2]
[343109140,1732363816928,-250.0,0.0002,2]
[343109141,1732363816957,-1172.77,0.0002,2]
[343109142,1732363816987,-500.0,0.0002,2]
[343109143,1732363817021,-500.0,0.0002,2]
[343109144,1732363817052,-1095.66,0.0002,2]
[343109145,1732363817081,-500.0,0.0002,2]
[343109146,1732363817112,-500.0,0.0002,2]
[343109147,1732363817143,-500.0,0.0002,2]
[343109148,1732363817172,-500.0,0.0002,2]
[343109149,1732363817201,-500.0,0.0002,2]
[343109150,1732363817232,-1092.97,0.0002,2]
[343109151,1732363817262,-752.35,0.0002,2]
[343109152,1732363817292,-500.0,0.0002,2]
[343109153,1732363817323,-1905.13,0.0002,2]
[343109154,1732363817352,-500.0,0.0002,2]
[343109155,1732363817381,-500.0,0.0002,2]
[343109156,1732363817410,-938.66,0.0002,2]
[343109157,1732363817440,-288858.0,0.0002,2]
[343109158,1732363817471,-500.0,0.0002,2]
[343109159,1732363817506,-500.0,0.0002,2]
[343109160,1732363817539,-500.0,0.0002,2]
[343109161,1732363817571,-500.0,0.0002,2]
[343109162,1732363817601,-500.0,0.0002,2]
[343109163,1732363817631,-732.4,0.0002,2]
[343109164,1732363817661,-500.0,0.0002,2]
[343109165,1732363817693,-500.0,0.0002,2]
[343109166,1732363817724,-500.0,0.0002,2]
[343109167,1732363817756,-500.0,0.0002,2]
[343109168,1732363817788,-500.0,0.0002,2]
[343109169,1732363817818,-500.0,0.0002,2]
[343109170,1732363817848,-1065.5,0.0002,2]
[343109171,1732363817877,-519.38366541,0.0002,2]
[343109172,1732363817907,-500.0,0.0002,2]
[343109173,1732363817936,-500.0,0.0002,2]
[343109174,1732363817966,-500.0,0.0002,2]
[343109175,1732363817997,-2062.38,0.0002,2]
[343109176,1732363818029,-500.0,0.0002,2]
[343109177,1732363818062,-500.0,0.0002,2]
[343109178,1732363818093,-500.0,0.0002,2]
[343109179,1732363818125,-22802.25,0.0002,2]
[343109180,1732363818159,-842.43,0.0002,2]
[343109181,1732363818189,-500.0,0.0002,2]
[343109182,1732363818220,-500.0,0.0002,2]
[343109183,1732363818252,-2917.26,0.0002,2]
[343109184,1732363818284,-12661.24,0.0002,2]
[343109185,1732363818319,-500.0,0.0002,2]
[343109186,1732363818351,-500.0,0.0002,2]
[343109187,1732363818386,-500.0,0.0002,2]
[343109188,1732363818420,-1609.55,0.0002,2]
[343109189,1732363818452,-1335.26,0.0002,2]
[343109190,1732363818484,-500.0,0.0002,2]
[343109191,1732363818516,-6871.74,0.0002,2]
[343109192,1732363818549,-1889.34,0.0002,2]
[343109193,1732363818580,-1142.95,0.0002,2]
[343109194,1732363818611,-1000.0,0.00020021,2]
[343109195,1732363818645,-500.8560183,0.00020021,2]
[343109196,1732363818689,-1000.0,0.00020021,2]
[343109197,1732363818728,-201.2,0.00020109,2]
[343109198,1732363818763,-600.0,0.00020253,2]
[343109199,1732363818812,-500.0,0.00020273,2]
[343109200,1732363818858,-500.0,0.00020273,2]
[343109201,1732363818916,-644.39160301,0.00020273,2]
[343109202,1732363818962,-503.48974491,0.00020273,2]
[343109203,1732363819006,-500.0,0.00020273,2]
[343109204,1732363819050,-500.0,0.00020273,2]
[343109205,1732363819094,-500.0,0.00020273,2]
[343109206,1732363819139,-500.0,0.00020273,2]
[343109207,1732363819184,-500.0,0.00020273,2]
[343109208,1732363819227,-500.0,0.00020273,2]
[343109209,1732363819272,-500.0,0.00020273,2]
[343109210,1732363819320,-500.0,0.00020273,2]
[343109211,1732363819365,-500.0,0.00020273,2]
[343109212,1732363819408,-500.0,0.00020273,2]
[343109213,1732363819452,-500.0,0.00020273,2]
[343109214,1732363819494,-804.92,0.00020273,2]
[343109215,1732363819542,-572.61209035,0.00020273,2]
[343109216,1732363819587,-500.0,0.00020273,2]
[343109217,1732363819630,-500.0,0.00020273,2]
[343109218,1732363819676,-550.72313203,0.00020273,2]
[343109219,1732363819722,-500.0,0.00020273,2]
[343109220,1732363819766,-629.19712751,0.00020273,2]
[343109221,1732363819814,-500.0,0.00020273,2]
[343109222,1732363819858,-500.0,0.00020273,2]
[343109223,1732363819904,-1424.86,0.00020273,2]
[343109224,1732363819952,-500.0,0.00020273,2]
[343109225,1732363819998,-1952.93,0.00020273,2]
[343109226,1732363820046,-549.4,0.00020273,2]
[343109227,1732363820092,-500.0,0.00020273,2]
[343109228,1732363820138,-500.0,0.00020273,2]
[343109229,1732363820184,-500.0,0.00020273,2]
[343109230,1732363820229,-502.65638944,0.00020273,2]
[343109231,1732363820275,-500.0,0.00020273,2]
[343109232,1732363820320,-455.01368085,0.00020273,2]
[343109233,1732363820363,-1177.73,0.00020273,2]
[343109234,1732363820406,-500.0,0.00020273,2]
[343109235,1732363820450,-500.0,0.00020273,2]
[343109236,1732363820494,-1178.56,0.00020273,2]
[343109237,1732363820540,-500.0,0.00020273,2]
[343109238,1732363820582,-500.0,0.00020273,2]
[343109239,1732363820623,-626.42924518,0.00020273,2]
[343109240,1732363820664,-500.0,0.00020273,2]
[343109241,1732363820707,-372.37437637,0.00020273,2]
[343109242,1732363820749,-500.0,0.00020273,2]
[343109243,1732363820792,-465.06933325,0.00020273,2]
[343109244,1732363820975,-500.0,0.00020273,2]
[343109245,1732363821022,-816.47,0.00020273,2]
[343109246,1732363821068,-500.0,0.00020273,2]
[343109247,1732363821113,-500.0,0.00020273,2]
[343109248,1732363821156,-500.0,0.00020273,2]
[343109249,1732363821200,-500.0,0.00020273,2]
[343109250,1732363821245,-500.0,0.00020273,2]